[Event "Titled Tuesday Blitz August 23 Late 2022"]
[White "Weetik, Vjacheslav"]
[Black "Bok, Benjamin"]
[WhiteFideId "4153472"]
[BlackFideId "1017063"]
[WhiteElo "2469"]
[BlackElo "2658"]
[Result "0-1"]
[Round "03"]
[TimeControl "180+1"]
[Date "2022.08.23"]
[WhiteClock "0:01:17"]
[BlackClock "0:00:45"]

1. d4 {[%clk 0:03:00]}  Nf6 {[%clk 0:02:59]} 2. c4 {[%clk 0:03:00]}  e6 {[%clk 0:03:00]} 3. g3 {[%clk 0:02:59]}  Bb4+ {[%clk 0:02:57]} 4. Bd2 {[%clk 0:02:59]}  Be7 {[%clk 0:02:57]} 5. Nf3 {[%clk 0:02:58]}  d5 {[%clk 0:02:57]} 6. Bg2 {[%clk 0:02:59]}  O-O {[%clk 0:02:58]} 7. O-O {[%clk 0:02:59]}  Nbd7 {[%clk 0:02:58]} 8. Qc2 {[%clk 0:02:57]}  c6 {[%clk 0:02:59]} 9. Bf4 {[%clk 0:02:53]}  a5 {[%clk 0:02:57]} 10. Rd1 {[%clk 0:02:41]}  h6 {[%clk 0:02:56]} 11. Nc3 {[%clk 0:02:28]}  dxc4 {[%clk 0:02:55]} 12. Ne5 {[%clk 0:02:27]}  Nxe5 {[%clk 0:02:39]} 13. dxe5 {[%clk 0:02:23]}  Nd5 {[%clk 0:02:38]} 14. e4 {[%clk 0:02:22]}  Nb4 {[%clk 0:02:38]} 15. Qe2 {[%clk 0:02:19]}  Nd3 {[%clk 0:02:37]} 16. b3 {[%clk 0:02:17]}  b5 {[%clk 0:02:30]} 17. bxc4 {[%clk 0:02:14]}  bxc4 {[%clk 0:02:31]} 18. Qg4 {[%clk 0:02:10]}  Qc7 {[%clk 0:02:08]} 19. Bxh6 {[%clk 0:02:06]}  Qxe5 {[%clk 0:02:07]} 20. Bd2 {[%clk 0:02:06]}  Bc5 {[%clk 0:02:05]} 21. Rf1 {[%clk 0:02:03]}  Bd4 {[%clk 0:01:34]} 22. Rac1 {[%clk 0:01:35]}  Nxc1 {[%clk 0:01:30]} 23. Rxc1 {[%clk 0:01:36]}  Qf6 {[%clk 0:01:10]} 24. Kh1 {[%clk 0:01:31]}  Qxf2 {[%clk 0:01:02]} 25. Bh6 {[%clk 0:01:30]}  Bxc3 {[%clk 0:00:58]} 26. h4 {[%clk 0:01:21]}  Be5 {[%clk 0:00:45]} 27. Kh2 {[%clk 0:01:18]}  Qxg3+ {[%clk 0:00:43]} 28. Qxg3 {[%clk 0:01:17]}  Bxg3+ {[%clk 0:00:43]} 29. Kxg3 {[%clk 0:01:18]}  gxh6 {[%clk 0:00:44]} 30. Rxc4 {[%clk 0:01:17]}  Bd7 {[%clk 0:00:45]} 0-1


[Site "https://www.chess.com"]

[Event "Titled Tuesday Blitz August 23 Late 2022"]
[White "Yanchenko, Roman"]
[Black "Pinheiro, Iung Alicio de O."]
[WhiteFideId "4137329"]
[BlackFideId "2104350"]
[WhiteElo "2514"]
[BlackElo "2283"]
[Result "0-1"]
[Round "03"]
[TimeControl "180+1"]
[Date "2022.08.23"]
[WhiteClock "0:00:02"]
[BlackClock "0:00:07"]

1. d4 {[%clk 0:03:00]}  Nf6 {[%clk 0:02:59]} 2. c4 {[%clk 0:03:01]}  g6 {[%clk 0:02:59]} 3. Nf3 {[%clk 0:03:01]}  Bg7 {[%clk 0:02:58]} 4. Nc3 {[%clk 0:03:01]}  d5 {[%clk 0:02:57]} 5. Bf4 {[%clk 0:03:01]}  c5 {[%clk 0:02:47]} 6. dxc5 {[%clk 0:02:52]}  O-O {[%clk 0:01:59]} 7. cxd5 {[%clk 0:02:46]}  Qa5 {[%clk 0:01:53]} 8. Be5 {[%clk 0:02:46]}  Nbd7 {[%clk 0:01:45]} 9. Qd4 {[%clk 0:02:45]}  Nxe5 {[%clk 0:01:38]} 10. Nxe5 {[%clk 0:02:45]}  Nd7 {[%clk 0:01:12]} 11. f4 {[%clk 0:02:45]}  Qc7 {[%clk 0:01:03]} 12. d6 {[%clk 0:02:44]}  exd6 {[%clk 0:01:03]} 13. cxd6 {[%clk 0:02:36]}  Qa5 {[%clk 0:01:03]} 14. b4 {[%clk 0:01:35]}  Nxe5 {[%clk 0:00:55]} 15. bxa5 {[%clk 0:01:12]}  Nf3+ {[%clk 0:00:53]} 16. gxf3 {[%clk 0:01:12]}  Bxd4 {[%clk 0:00:54]} 17. Rc1 {[%clk 0:01:11]}  Be6 {[%clk 0:00:50]} 18. e4 {[%clk 0:01:05]}  Be3 {[%clk 0:00:49]} 19. Rd1 {[%clk 0:01:03]}  Bxf4 {[%clk 0:00:50]} 20. Nd5 {[%clk 0:00:57]}  Be5 {[%clk 0:00:44]} 21. Nc7 {[%clk 0:00:50]}  Rad8 {[%clk 0:00:44]} 22. Nxe6 {[%clk 0:00:48]}  fxe6 {[%clk 0:00:45]} 23. Bc4 {[%clk 0:00:49]}  Rxf3 {[%clk 0:00:40]} 24. Bxe6+ {[%clk 0:00:49]}  Kg7 {[%clk 0:00:40]} 25. d7 {[%clk 0:00:33]}  Re3+ {[%clk 0:00:39]} 26. Kf2 {[%clk 0:00:33]}  Rxe4 {[%clk 0:00:40]} 27. Rde1 {[%clk 0:00:22]}  Rf4+ {[%clk 0:00:35]} 28. Kg2 {[%clk 0:00:20]}  Bb8 {[%clk 0:00:32]} 29. Bh3 {[%clk 0:00:19]}  Rff8 {[%clk 0:00:28]} 30. Re7+ {[%clk 0:00:19]}  Kh6 {[%clk 0:00:28]} 31. Rhe1 {[%clk 0:00:18]}  Bc7 {[%clk 0:00:27]} 32. Re8 {[%clk 0:00:18]}  Kg7 {[%clk 0:00:25]} 33. R1e7+ {[%clk 0:00:17]}  Kf6 {[%clk 0:00:24]} 34. Re6+ {[%clk 0:00:15]}  Kg5 {[%clk 0:00:23]} 35. Rxf8 {[%clk 0:00:14]}  Rxf8 {[%clk 0:00:18]} 36. Re8 {[%clk 0:00:15]}  Rf4 {[%clk 0:00:16]} 37. d8=Q+ {[%clk 0:00:12]}  Bxd8 {[%clk 0:00:16]} 38. Rxd8 {[%clk 0:00:13]}  Ra4 {[%clk 0:00:16]} 39. Be6 {[%clk 0:00:10]}  Rxa5 {[%clk 0:00:15]} 40. Rd5+ {[%clk 0:00:08]}  Rxd5 {[%clk 0:00:15]} 41. Bxd5 {[%clk 0:00:09]}  b6 {[%clk 0:00:15]} 42. Bc4 {[%clk 0:00:08]}  Kf4 {[%clk 0:00:15]} 43. Kf2 {[%clk 0:00:08]}  g5 {[%clk 0:00:15]} 44. Ba6 {[%clk 0:00:06]}  h5 {[%clk 0:00:15]} 45. a4 {[%clk 0:00:06]}  g4 {[%clk 0:00:13]} 46. Bb7 {[%clk 0:00:02]}  h4 {[%clk 0:00:13]} 47. Ke2 {[%clk 0:00:02]}  Ke5 {[%clk 0:00:12]} 48. Ke3 {[%clk 0:00:02]}  Kf5 {[%clk 0:00:07]} 0-1


[Site "https://www.chess.com"]

[Event "Titled Tuesday Blitz August 23 Late 2022"]
[White "Bluebaum, Matthias"]
[Black "Danielyan, Vahe"]
[WhiteFideId "24651516"]
[BlackFideId "13304828"]
[WhiteElo "2603"]
[BlackElo "2421"]
[Result "1-0"]
[Round "04"]
[TimeControl "180+1"]
[Date "2022.08.23"]
[WhiteClock "0:00:36"]
[BlackClock "0:00:28"]

1. d4 {[%clk 0:03:00]}  Nf6 {[%clk 0:02:58]} 2. c4 {[%clk 0:03:01]}  g6 {[%clk 0:02:58]} 3. Nc3 {[%clk 0:03:01]}  Bg7 {[%clk 0:02:59]} 4. e4 {[%clk 0:03:01]}  d6 {[%clk 0:02:59]} 5. Nf3 {[%clk 0:03:02]}  O-O {[%clk 0:03:00]} 6. Be2 {[%clk 0:03:03]}  e5 {[%clk 0:03:00]} 7. Be3 {[%clk 0:03:04]}  Qe8 {[%clk 0:02:57]} 8. dxe5 {[%clk 0:02:58]}  Ng4 {[%clk 0:02:57]} 9. Bg5 {[%clk 0:02:48]}  Nxe5 {[%clk 0:02:56]} 10. Nd4 {[%clk 0:02:44]}  Nbc6 {[%clk 0:02:52]} 11. Ndb5 {[%clk 0:02:41]}  f6 {[%clk 0:02:33]} 12. Be3 {[%clk 0:02:06]}  Qf7 {[%clk 0:02:33]} 13. Nd5 {[%clk 0:02:00]}  f5 {[%clk 0:02:18]} 14. Nbxc7 {[%clk 0:01:50]}  Rb8 {[%clk 0:02:18]} 15. Nb5 {[%clk 0:01:50]}  Be6 {[%clk 0:02:13]} 16. Nxd6 {[%clk 0:01:46]}  Qd7 {[%clk 0:02:13]} 17. exf5 {[%clk 0:01:47]}  gxf5 {[%clk 0:02:09]} 18. Nf4 {[%clk 0:01:37]}  Rbd8 {[%clk 0:02:02]} 19. c5 {[%clk 0:01:38]}  Kh8 {[%clk 0:01:40]} 20. O-O {[%clk 0:01:31]}  Bg8 {[%clk 0:01:40]} 21. Qc2 {[%clk 0:01:20]}  Ng4 {[%clk 0:01:38]} 22. Bxg4 {[%clk 0:01:05]}  fxg4 {[%clk 0:01:39]} 23. Rad1 {[%clk 0:01:05]}  Ne5 {[%clk 0:01:27]} 24. Nh5 {[%clk 0:00:49]}  Nf3+ {[%clk 0:00:54]} 25. Kh1 {[%clk 0:00:48]}  Be5 {[%clk 0:00:55]} 26. Nc4 {[%clk 0:00:35]}  Qf7 {[%clk 0:00:31]} 27. Nxe5 {[%clk 0:00:35]}  Qxh5 {[%clk 0:00:30]} 28. Nxf3 {[%clk 0:00:35]}  gxf3 {[%clk 0:00:28]} 29. Qc3+ {[%clk 0:00:36]} 1-0


[Site "https://www.chess.com"]

[Event "Titled Tuesday Blitz August 23 Late 2022"]
[White "Bok, Benjamin"]
[Black "Bacrot, Etienne"]
[WhiteFideId "1017063"]
[BlackFideId "605506"]
[WhiteElo "2658"]
[BlackElo "2673"]
[Result "1/2-1/2"]
[Round "04"]
[TimeControl "180+1"]
[Date "2022.08.23"]
[WhiteClock "0:00:15"]
[BlackClock "0:00:35"]

1. d4 {[%clk 0:03:00]}  Nf6 {[%clk 0:02:59]} 2. c4 {[%clk 0:03:01]}  c6 {[%clk 0:02:57]} 3. Nf3 {[%clk 0:02:57]}  d5 {[%clk 0:02:58]} 4. cxd5 {[%clk 0:02:58]}  cxd5 {[%clk 0:02:58]} 5. Nc3 {[%clk 0:02:59]}  Nc6 {[%clk 0:02:57]} 6. Bf4 {[%clk 0:02:59]}  Bf5 {[%clk 0:02:56]} 7. e3 {[%clk 0:02:59]}  e6 {[%clk 0:02:56]} 8. Qb3 {[%clk 0:02:59]}  Bb4 {[%clk 0:02:53]} 9. Bb5 {[%clk 0:02:58]}  Bxc3+ {[%clk 0:02:51]} 10. Qxc3 {[%clk 0:02:57]}  O-O {[%clk 0:02:50]} 11. Bxc6 {[%clk 0:02:58]}  Rc8 {[%clk 0:02:51]} 12. Ne5 {[%clk 0:02:58]}  Ng4 {[%clk 0:02:51]} 13. Nxg4 {[%clk 0:02:56]}  Bxg4 {[%clk 0:02:49]} 14. Qb4 {[%clk 0:02:54]}  Rxc6 {[%clk 0:02:47]} 15. Qxb7 {[%clk 0:02:54]}  Qc8 {[%clk 0:02:45]} 16. Qxc8 {[%clk 0:02:54]}  Rfxc8 {[%clk 0:02:46]} 17. O-O {[%clk 0:02:55]}  a5 {[%clk 0:02:42]} 18. b3 {[%clk 0:02:40]}  f6 {[%clk 0:02:32]} 19. h3 {[%clk 0:02:25]}  Bf5 {[%clk 0:02:31]} 20. Rfd1 {[%clk 0:02:23]}  h5 {[%clk 0:02:30]} 21. h4 {[%clk 0:02:20]}  Kf7 {[%clk 0:02:29]} 22. Rd2 {[%clk 0:02:06]}  Rc1+ {[%clk 0:02:21]} 23. Rxc1 {[%clk 0:02:04]}  Rxc1+ {[%clk 0:02:20]} 24. Kh2 {[%clk 0:02:05]}  Rc2 {[%clk 0:02:15]} 25. Rxc2 {[%clk 0:02:03]}  Bxc2 {[%clk 0:02:15]} 26. Bc7 {[%clk 0:01:54]}  Bb1 {[%clk 0:02:06]} 27. a3 {[%clk 0:01:49]}  Bc2 {[%clk 0:02:03]} 28. Bxa5 {[%clk 0:01:49]}  Bxb3 {[%clk 0:02:03]} 29. Kg3 {[%clk 0:01:49]}  Ba4 {[%clk 0:01:59]} 30. Bb4 {[%clk 0:01:48]}  Bb5 {[%clk 0:01:58]} 31. f3 {[%clk 0:01:45]}  Ba4 {[%clk 0:01:23]} 32. Bd6 {[%clk 0:01:44]}  Bb5 {[%clk 0:01:23]} 33. Kf2 {[%clk 0:01:35]}  Ke8 {[%clk 0:01:15]} 34. e4 {[%clk 0:01:04]}  Bc6 {[%clk 0:01:12]} 35. e5 {[%clk 0:00:52]}  f5 {[%clk 0:01:08]} 36. Ke3 {[%clk 0:00:49]}  g6 {[%clk 0:01:03]} 37. g3 {[%clk 0:00:21]}  Bb5 {[%clk 0:01:01]} 38. Bb4 {[%clk 0:00:17]}  Ba4 {[%clk 0:01:01]} 39. Kd2 {[%clk 0:00:15]}  Kd7 {[%clk 0:01:00]} 40. Bf8 {[%clk 0:00:14]}  Bb5 {[%clk 0:00:57]} 41. Kc3 {[%clk 0:00:12]}  Kc6 {[%clk 0:00:54]} 42. Kd2 {[%clk 0:00:11]}  Kd7 {[%clk 0:00:53]} 43. Ke3 {[%clk 0:00:11]}  Ke8 {[%clk 0:00:53]} 44. Bc5 {[%clk 0:00:11]}  Ba4 {[%clk 0:00:53]} 45. Kf4 {[%clk 0:00:10]}  Bd1 {[%clk 0:00:49]} 46. Ke3 {[%clk 0:00:09]}  Ba4 {[%clk 0:00:48]} 47. Bd6 {[%clk 0:00:08]}  Kd7 {[%clk 0:00:39]} 48. Kf4 {[%clk 0:00:07]}  Ke8 {[%clk 0:00:39]} 49. g4 {[%clk 0:00:06]}  fxg4 {[%clk 0:00:36]} 50. fxg4 {[%clk 0:00:07]}  Bd1 {[%clk 0:00:31]} 51. gxh5 {[%clk 0:00:05]}  gxh5 {[%clk 0:00:30]} 52. Kg5 {[%clk 0:00:05]}  Kd7 {[%clk 0:00:27]} 53. Kf6 {[%clk 0:00:04]}  Bg4 {[%clk 0:00:25]} 54. Bc5 {[%clk 0:00:05]}  Kc6 {[%clk 0:00:25]} 55. a4 {[%clk 0:00:04]}  Kb7 {[%clk 0:00:25]} 56. a5 {[%clk 0:00:04]}  Ka6 {[%clk 0:00:25]} 57. Bb6 {[%clk 0:00:05]}  Kb5 {[%clk 0:00:26]} 58. Ke7 {[%clk 0:00:05]}  Ka6 {[%clk 0:00:26]} 59. Kd6 {[%clk 0:00:06]}  Bf5 {[%clk 0:00:26]} 60. Kc7 {[%clk 0:00:05]}  Bg4 {[%clk 0:00:26]} 61. Kc6 {[%clk 0:00:06]}  Bf5 {[%clk 0:00:26]} 62. Bd8 {[%clk 0:00:06]}  Bg4 {[%clk 0:00:27]} 63. Kc5 {[%clk 0:00:06]}  Bf5 {[%clk 0:00:27]} 64. Kb4 {[%clk 0:00:06]}  Bg4 {[%clk 0:00:27]} 65. Bb6 {[%clk 0:00:07]}  Bf5 {[%clk 0:00:28]} 66. Kc3 {[%clk 0:00:08]}  Bg4 {[%clk 0:00:28]} 67. Kd2 {[%clk 0:00:09]}  Bf5 {[%clk 0:00:29]} 68. Ke3 {[%clk 0:00:10]}  Bg4 {[%clk 0:00:29]} 69. Kf4 {[%clk 0:00:10]}  Kb5 {[%clk 0:00:29]} 70. Kg5 {[%clk 0:00:11]}  Ka6 {[%clk 0:00:30]} 71. Kg6 {[%clk 0:00:11]}  Kb7 {[%clk 0:00:30]} 72. Kg5 {[%clk 0:00:11]}  Ka6 {[%clk 0:00:31]} 73. Kf6 {[%clk 0:00:11]}  Kb7 {[%clk 0:00:31]} 74. Bc5 {[%clk 0:00:12]}  Ka6 {[%clk 0:00:32]} 75. Bb4 {[%clk 0:00:12]}  Kb7 {[%clk 0:00:32]} 76. Be1 {[%clk 0:00:13]}  Ka6 {[%clk 0:00:33]} 77. Ke7 {[%clk 0:00:13]}  Kb7 {[%clk 0:00:33]} 78. Kd6 {[%clk 0:00:14]}  Ka6 {[%clk 0:00:34]} 79. Kc5 {[%clk 0:00:14]}  Bf5 {[%clk 0:00:33]} 80. Kd6 {[%clk 0:00:14]}  Bg4 {[%clk 0:00:34]} 81. Ke7 {[%clk 0:00:15]}  Bf5 {[%clk 0:00:34]} 82. Kf6 {[%clk 0:00:15]}  Bg4 {[%clk 0:00:35]} 83. Kg5 {[%clk 0:00:15]} 1/2-1/2


[Site "https://www.chess.com"]

[Event "Titled Tuesday Blitz August 23 Late 2022"]
[White "Deac, Bogdan-Daniel"]
[Black "Korchmar, Vasiliy"]
[WhiteFideId "1226380"]
[BlackFideId "24131750"]
[WhiteElo "2648"]
[BlackElo "2370"]
[Result "1-0"]
[Round "04"]
[TimeControl "180+1"]
[Date "2022.08.23"]
[WhiteClock "0:00:06"]
[BlackClock "0:00:02"]

1. d4 {[%clk 0:03:00]}  d5 {[%clk 0:02:59]} 2. c4 {[%clk 0:03:01]}  c6 {[%clk 0:03:00]} 3. Nf3 {[%clk 0:03:00]}  Nf6 {[%clk 0:03:00]} 4. Nc3 {[%clk 0:03:00]}  e6 {[%clk 0:03:00]} 5. g3 {[%clk 0:02:59]}  dxc4 {[%clk 0:02:37]} 6. Bg2 {[%clk 0:02:59]}  Nbd7 {[%clk 0:02:28]} 7. a4 {[%clk 0:02:56]}  a5 {[%clk 0:02:25]} 8. O-O {[%clk 0:02:55]}  Bb4 {[%clk 0:02:18]} 9. Qc2 {[%clk 0:02:55]}  O-O {[%clk 0:02:14]} 10. e4 {[%clk 0:02:54]}  h6 {[%clk 0:02:00]} 11. Rd1 {[%clk 0:02:52]}  b6 {[%clk 0:01:57]} 12. e5 {[%clk 0:02:37]}  Nd5 {[%clk 0:01:56]} 13. Ne4 {[%clk 0:02:37]}  Ba6 {[%clk 0:01:48]} 14. Neg5 {[%clk 0:02:25]}  hxg5 {[%clk 0:01:40]} 15. Nxg5 {[%clk 0:02:26]}  f5 {[%clk 0:01:28]} 16. Nxe6 {[%clk 0:02:13]}  Qe7 {[%clk 0:01:28]} 17. Nf4 {[%clk 0:02:13]}  Nxf4 {[%clk 0:01:06]} 18. Bxf4 {[%clk 0:02:14]}  Rac8 {[%clk 0:00:53]} 19. h4 {[%clk 0:02:12]}  Kh8 {[%clk 0:00:48]} 20. Qe2 {[%clk 0:02:03]}  Nf6 {[%clk 0:00:40]} 21. d5 {[%clk 0:00:47]}  cxd5 {[%clk 0:00:29]} 22. Rxd5 {[%clk 0:00:26]}  Bb7 {[%clk 0:00:18]} 23. Bg5 {[%clk 0:00:17]}  Qe8 {[%clk 0:00:15]} 24. Bxf6 {[%clk 0:00:08]}  Bxd5 {[%clk 0:00:12]} 25. Bxd5 {[%clk 0:00:07]}  Rxf6 {[%clk 0:00:11]} 26. Qe3 {[%clk 0:00:03]}  Bc5 {[%clk 0:00:09]} 27. Qf4 {[%clk 0:00:03]}  Rg6 {[%clk 0:00:08]} 28. Qxf5 {[%clk 0:00:03]}  Rxg3+ {[%clk 0:00:08]} 29. Kf1 {[%clk 0:00:03]}  Rd3 {[%clk 0:00:04]} 30. Be4 {[%clk 0:00:03]}  g6 {[%clk 0:00:03]} 31. Qf6+ {[%clk 0:00:03]}  Kh7 {[%clk 0:00:03]} 32. h5 {[%clk 0:00:04]}  Rd2 {[%clk 0:00:01]} 33. Bxg6+ {[%clk 0:00:03]}  Kg8 {[%clk 0:00:02]} 34. Bxe8 {[%clk 0:00:04]}  Rxf2+ {[%clk 0:00:03]} 35. Qxf2 {[%clk 0:00:04]}  Bxf2 {[%clk 0:00:03]} 36. Kxf2 {[%clk 0:00:05]}  Rxe8 {[%clk 0:00:03]} 37. Re1 {[%clk 0:00:05]}  Kf7 {[%clk 0:00:03]} 38. Re4 {[%clk 0:00:06]}  Ke6 {[%clk 0:00:03]} 39. Rxc4 {[%clk 0:00:06]}  Kxe5 {[%clk 0:00:03]} 40. Rc6 {[%clk 0:00:06]}  Rh8 {[%clk 0:00:02]} 41. h6 {[%clk 0:00:06]} 1-0


[Site "https://www.chess.com"]

[Event "Titled Tuesday Blitz August 23 Late 2022"]
[White "Djordjevic, Vuk"]
[Black "Shimanov, Aleksandr"]
[WhiteFideId "902098"]
[BlackFideId "4198603"]
[WhiteElo "2456"]
[BlackElo "2605"]
[Result "1-0"]
[Round "04"]
[TimeControl "180+1"]
[Date "2022.08.23"]
[WhiteClock "0:00:08"]
[BlackClock "0:00:01"]

1. d4 {[%clk 0:03:00]}  Nf6 {[%clk 0:02:59]} 2. Bg5 {[%clk 0:03:01]}  Ne4 {[%clk 0:02:45]} 3. Bf4 {[%clk 0:03:01]}  d5 {[%clk 0:02:44]} 4. e3 {[%clk 0:03:01]}  c5 {[%clk 0:02:43]} 5. Bd3 {[%clk 0:03:00]}  cxd4 {[%clk 0:02:43]} 6. exd4 {[%clk 0:03:01]}  Nc6 {[%clk 0:02:42]} 7. c3 {[%clk 0:02:58]}  Bf5 {[%clk 0:02:41]} 8. Qe2 {[%clk 0:02:54]}  e6 {[%clk 0:02:39]} 9. Nd2 {[%clk 0:02:52]}  Nd6 {[%clk 0:02:38]} 10. Ngf3 {[%clk 0:02:51]}  Bxd3 {[%clk 0:02:33]} 11. Qxd3 {[%clk 0:02:52]}  Be7 {[%clk 0:02:32]} 12. h4 {[%clk 0:02:51]}  h5 {[%clk 0:02:25]} 13. O-O-O {[%clk 0:02:35]}  Nf5 {[%clk 0:02:09]} 14. g3 {[%clk 0:02:29]}  a6 {[%clk 0:02:02]} 15. Rde1 {[%clk 0:02:28]}  b5 {[%clk 0:01:47]} 16. Kb1 {[%clk 0:02:05]}  Na5 {[%clk 0:01:44]} 17. Ne5 {[%clk 0:02:03]}  Rc8 {[%clk 0:01:44]} 18. Re2 {[%clk 0:02:01]}  Nc4 {[%clk 0:01:44]} 19. Rhe1 {[%clk 0:01:58]}  O-O {[%clk 0:01:40]} 20. Ndxc4 {[%clk 0:01:39]}  dxc4 {[%clk 0:01:30]} 21. Qf3 {[%clk 0:01:36]}  g6 {[%clk 0:01:21]} 22. Nxg6 {[%clk 0:01:23]}  fxg6 {[%clk 0:01:18]} 23. Rxe6 {[%clk 0:01:24]}  Rf6 {[%clk 0:01:17]} 24. Bg5 {[%clk 0:01:08]}  Rxe6 {[%clk 0:01:12]} 25. Rxe6 {[%clk 0:01:09]}  Qe8 {[%clk 0:00:27]} 26. Qb7 {[%clk 0:01:00]}  Bxg5 {[%clk 0:00:23]} 27. Rxe8+ {[%clk 0:01:00]}  Rxe8 {[%clk 0:00:22]} 28. hxg5 {[%clk 0:00:52]}  Re1+ {[%clk 0:00:22]} 29. Kc2 {[%clk 0:00:52]}  Re2+ {[%clk 0:00:22]} 30. Kc1 {[%clk 0:00:49]}  Rxf2 {[%clk 0:00:23]} 31. Qxa6 {[%clk 0:00:47]}  Ne3 {[%clk 0:00:12]} 32. Qxg6+ {[%clk 0:00:44]}  Kf8 {[%clk 0:00:11]} 33. Qh6+ {[%clk 0:00:30]}  Ke7 {[%clk 0:00:10]} 34. Qg7+ {[%clk 0:00:28]}  Kd8 {[%clk 0:00:09]} 35. Qh8+ {[%clk 0:00:20]}  Kd7 {[%clk 0:00:08]} 36. Qxh5 {[%clk 0:00:17]}  Rc2+ {[%clk 0:00:06]} 37. Kb1 {[%clk 0:00:17]}  Rf2 {[%clk 0:00:04]} 38. a3 {[%clk 0:00:13]}  Rf1+ {[%clk 0:00:03]} 39. Ka2 {[%clk 0:00:13]}  Kd6 {[%clk 0:00:02]} 40. Qg6+ {[%clk 0:00:13]}  Kd5 {[%clk 0:00:01]} 41. a4 {[%clk 0:00:12]}  bxa4 {[%clk 0:00:01]} 42. Ka3 {[%clk 0:00:11]}  Rf2 {[%clk 0:00:01]} 43. Qg8+ {[%clk 0:00:09]}  Ke4 {[%clk 0:00:02]} 44. g6 {[%clk 0:00:08]}  Kd3 {[%clk 0:00:01]} 45. g7 {[%clk 0:00:08]}  Nc2+ {[%clk 0:00:01]} 46. Kxa4 {[%clk 0:00:08]} 1-0


[Site "https://www.chess.com"]

[Event "Titled Tuesday Blitz August 23 Late 2022"]
[White "Fishbein, Alexander"]
[Black "Naroditsky, Daniel"]
[WhiteFideId "2000377"]
[BlackFideId "2026961"]
[WhiteElo "2410"]
[BlackElo "2628"]
[Result "0-1"]
[Round "04"]
[TimeControl "180+1"]
[Date "2022.08.23"]
[WhiteClock "0:00:01"]
[BlackClock "0:01:28"]

1. e4 {[%clk 0:03:00]}  e5 {[%clk 0:02:59]} 2. Nf3 {[%clk 0:03:00]}  Nc6 {[%clk 0:02:59]} 3. Nc3 {[%clk 0:02:57]}  Nf6 {[%clk 0:03:00]} 4. Be2 {[%clk 0:02:58]}  g6 {[%clk 0:02:58]} 5. d4 {[%clk 0:02:57]}  exd4 {[%clk 0:02:58]} 6. Nxd4 {[%clk 0:02:57]}  d6 {[%clk 0:02:55]} 7. Nxc6 {[%clk 0:02:45]}  bxc6 {[%clk 0:02:56]} 8. e5 {[%clk 0:02:45]}  Nd7 {[%clk 0:02:36]} 9. exd6 {[%clk 0:02:32]}  cxd6 {[%clk 0:02:37]} 10. O-O {[%clk 0:02:29]}  Be7 {[%clk 0:02:38]} 11. Bh6 {[%clk 0:02:26]}  Ne5 {[%clk 0:02:33]} 12. f4 {[%clk 0:02:20]}  Nd7 {[%clk 0:02:28]} 13. Bf3 {[%clk 0:02:15]}  d5 {[%clk 0:02:25]} 14. Re1 {[%clk 0:02:13]}  Nb6 {[%clk 0:02:16]} 15. Bg5 {[%clk 0:02:09]}  Be6 {[%clk 0:02:16]} 16. Bh6 {[%clk 0:01:53]}  Bf6 {[%clk 0:02:08]} 17. Ne2 {[%clk 0:01:50]}  Nc4 {[%clk 0:02:07]} 18. f5 {[%clk 0:01:17]}  gxf5 {[%clk 0:01:56]} 19. b3 {[%clk 0:01:12]}  Qb6+ {[%clk 0:01:52]} 20. Kh1 {[%clk 0:01:11]}  Ne3 {[%clk 0:01:52]} 21. Qd2 {[%clk 0:01:04]}  Ng4 {[%clk 0:01:50]} 22. Bxg4 {[%clk 0:01:01]}  Bxa1 {[%clk 0:01:51]} 23. Bxf5 {[%clk 0:00:50]}  Bxf5 {[%clk 0:01:51]} 24. Ng3+ {[%clk 0:00:41]}  Be6 {[%clk 0:01:49]} 25. Rxa1 {[%clk 0:00:35]}  O-O-O {[%clk 0:01:50]} 26. Bg7 {[%clk 0:00:30]}  Rhg8 {[%clk 0:01:50]} 27. Bd4 {[%clk 0:00:28]}  c5 {[%clk 0:01:50]} 28. Bf6 {[%clk 0:00:28]}  Rde8 {[%clk 0:01:50]} 29. Qf4 {[%clk 0:00:18]}  d4 {[%clk 0:01:46]} 30. Ne4 {[%clk 0:00:16]}  Kd7 {[%clk 0:01:39]} 31. Rd1 {[%clk 0:00:12]}  Bd5 {[%clk 0:01:38]} 32. Ng3 {[%clk 0:00:06]}  Qd6 {[%clk 0:01:34]} 33. Qf5+ {[%clk 0:00:04]}  Kc6 {[%clk 0:01:35]} 34. c4 {[%clk 0:00:03]}  Be6 {[%clk 0:01:27]} 35. Qf3+ {[%clk 0:00:03]}  Kb6 {[%clk 0:01:28]} 36. Ne4 {[%clk 0:00:03]}  Qc6 {[%clk 0:01:28]} 37. Be5 {[%clk 0:00:02]}  Bg4 {[%clk 0:01:28]} 38. Qf4 {[%clk 0:00:01]}  Bxd1 {[%clk 0:01:28]} 39. Nf6 {[%clk 0:00:01]}  Qxg2# {[%clk 0:01:28]} 0-1


[Site "https://www.chess.com"]